[Event "Live Chess"]
[Site "Chess.com"]
[Date "2021.02.24"]
[Round "5"]
[White "night_breeze"]
[Black "worsepot"]
[Result "1-0"]
[CurrentPosition "4Q3/2p5/p1k5/P1bp4/8/2P4P/B4PP1/4RRK1 b - -"]
[Timezone "UTC"]
[ECO "C70"]
[ECOUrl "https://www.chess.com/openings/Ruy-Lopez-Opening-Morphy-Defense-Caro-Variation-5.Bb3"]
[UTCDate "2021.02.24"]
[UTCTime "02:32:06"]
[WhiteElo "1424"]
[BlackElo "1025"]
[TimeControl "2100+2"]
[Termination "night_breeze won by resignation"]
[StartTime "02:32:06"]
[EndDate "2021.02.24"]
[EndTime "03:20:15"]
[Link "https://www.chess.com/live/game/7872853119"]

1. e4 {[%clk 0:34:59.1]} 1... e5 {[%clk 0:34:44.9]} 2. Nf3 {[%clk 0:34:58.8]} 2... Nc6 {[%clk 0:34:21.6]} 3. Bb5 {[%clk 0:34:57.5]} 3... a6 {[%clk 0:33:56.7]} 4. Ba4 {[%clk 0:34:57.4]} 4... b5 {[%clk 0:33:54.6]} 5. Bb3 {[%clk 0:34:57.8]} 5... Nf6 {[%clk 0:33:23.7]} 6. d3 {[%clk 0:34:47.4]} 6... Bc5 {[%clk 0:33:04.9]} 7. O-O {[%clk 0:34:27.7]} 7... O-O {[%clk 0:32:51.4]} 8. c3 {[%clk 0:34:18.4]} 8... d6 {[%clk 0:31:46.2]} 9. a4 {[%clk 0:33:48.2]} 9... Bg4 {[%clk 0:31:14.7]} 10. Nbd2 {[%clk 0:33:18.1]} 10... Nd7 {[%clk 0:29:57.3]} 11. h3 {[%clk 0:31:58.5]} 11... Bh5 {[%clk 0:29:28.6]} 12. Re1 {[%clk 0:31:35.2]} 12... Nb6 {[%clk 0:29:03.7]} 13. a5 {[%clk 0:31:23.6]} 13... Nd7 {[%clk 0:27:12.7]} 14. Nf1 {[%clk 0:31:16]} 14... b4 {[%clk 0:26:18.4]} 15. Bd5 {[%clk 0:29:04.3]} 15... Ndb8 {[%clk 0:25:32.1]} 16. Ng3 {[%clk 0:28:19.1]} 16... Bxf3 {[%clk 0:24:33.8]} 17. Qxf3 {[%clk 0:27:17.9]} 17... g6 {[%clk 0:24:06.2]} 18. Bh6 {[%clk 0:26:56]} 18... Ra7 {[%clk 0:22:20.5]} 19. Qg4 {[%clk 0:23:29]} 19... Ne7 {[%clk 0:20:35.7]} 20. Bg5 {[%clk 0:22:14.9]} 20... h5 {[%clk 0:18:56.5]} 21. Nxh5 {[%clk 0:21:44.4]} 21... Qd7 {[%clk 0:18:04.7]} 22. Nf6+ {[%clk 0:21:36.4]} 22... Kg7 {[%clk 0:17:40]} 23. Nxd7 {[%clk 0:21:33.4]} 23... Nxd7 {[%clk 0:17:41.4]} 24. Bxe7 {[%clk 0:21:30.1]} 24... Nf6 {[%clk 0:16:43.9]} 25. Bxf6+ {[%clk 0:20:14.5]} 25... Kxf6 {[%clk 0:16:44]} 26. d4 {[%clk 0:20:08.4]} 26... exd4 {[%clk 0:16:39.9]} 27. Qh4+ {[%clk 0:18:10.1]} 27... Kg7 {[%clk 0:15:41.7]} 28. Rad1 {[%clk 0:17:39.7]} 28... dxc3 {[%clk 0:15:07.1]} 29. bxc3 {[%clk 0:17:22.8]} 29... b3 {[%clk 0:14:56.2]} 30. Bxb3 {[%clk 0:16:48.6]} 30... Rb7 {[%clk 0:14:24.7]} 31. Bd5 {[%clk 0:16:06.7]} 31... Rb2 {[%clk 0:14:07.3]} 32. Rf1 {[%clk 0:14:56.8]} 32... Ra2 {[%clk 0:13:32.3]} 33. Bxa2 {[%clk 0:14:46.2]} 33... f6 {[%clk 0:12:58.2]} 34. e5 {[%clk 0:14:20.2]} 34... g5 {[%clk 0:12:39]} 35. exf6+ {[%clk 0:13:54.3]} 35... Kxf6 {[%clk 0:12:35.5]} 36. Qh6+ {[%clk 0:13:53.1]} 36... Ke7 {[%clk 0:12:03.1]} 37. Qxg5+ {[%clk 0:13:50.7]} 37... Ke8 {[%clk 0:12:04.4]} 38. Rde1+ {[%clk 0:13:43.2]} 38... Kd7 {[%clk 0:11:56.8]} 39. Qe7+ {[%clk 0:13:40.4]} 39... Kc6 {[%clk 0:11:55.2]} 40. Qxf8 {[%clk 0:13:41.1]} 40... d5 {[%clk 0:11:57.1]} 41. Qe8+ {[%clk 0:13:12.1]} 1-0

[Event "Live Chess"]
[Site "Chess.com"]
[Date "2021.02.24"]
[Round "5"]
[White "Phantom_Beast23"]
[Black "figsnoring"]
[Result "0-1"]
[CurrentPosition "8/8/p2pk1qp/1p2p3/8/P6K/8/8 w - -"]
[Timezone "UTC"]
[ECO "C50"]
[ECOUrl "https://www.chess.com/openings/Giuoco-Piano-Game-Four-Knights-Game"]
[UTCDate "2021.02.24"]
[UTCTime "02:45:09"]
[WhiteElo "1115"]
[BlackElo "1310"]
[TimeControl "2100+2"]
[Termination "figsnoring won by resignation"]
[StartTime "02:45:09"]
[EndDate "2021.02.24"]
[EndTime "03:12:48"]
[Link "https://www.chess.com/live/game/7873488449"]

1. e4 {[%clk 0:35:01.5]} 1... e5 {[%clk 0:34:41.1]} 2. Nf3 {[%clk 0:35:02.2]} 2... Nc6 {[%clk 0:34:40.2]} 3. Bc4 {[%clk 0:35:01.8]} 3... Bc5 {[%clk 0:34:37.4]} 4. Nc3 {[%clk 0:35:01.6]} 4... Nf6 {[%clk 0:34:36]} 5. Ng5 {[%clk 0:35:01.5]} 5... O-O {[%clk 0:34:35.1]} 6. d3 {[%clk 0:35:01.9]} 6... h6 {[%clk 0:34:33.8]} 7. h4 {[%clk 0:35:03.3]} 7... d6 {[%clk 0:34:05.9]} 8. Nf3 {[%clk 0:34:55.3]} 8... Ng4 {[%clk 0:33:51.7]} 9. Be3 {[%clk 0:34:45.5]} 9... Nxe3 {[%clk 0:33:32.8]} 10. fxe3 {[%clk 0:34:41.9]} 10... Bxe3 {[%clk 0:33:25.4]} 11. Qe2 {[%clk 0:34:34.1]} 11... Bb6 {[%clk 0:33:16.2]} 12. a3 {[%clk 0:33:22.8]} 12... a6 {[%clk 0:33:10.4]} 13. Ba2 {[%clk 0:33:22.2]} 13... Bg4 {[%clk 0:32:57.4]} 14. Qf2 {[%clk 0:32:38.1]} 14... Bxf2+ {[%clk 0:32:54.6]} 15. Kxf2 {[%clk 0:32:38.2]} 15... Bxf3 {[%clk 0:32:52.1]} 16. gxf3 {[%clk 0:32:38]} 16... Nd4 {[%clk 0:32:39.8]} 17. Rag1 {[%clk 0:32:32]} 17... Nxc2 {[%clk 0:32:21.2]} 18. Rg4 {[%clk 0:32:27.5]} 18... Kh8 {[%clk 0:31:47.8]} 19. Rhg1 {[%clk 0:31:40.6]} 19... g6 {[%clk 0:31:31.2]} 20. h5 {[%clk 0:30:52.5]} 20... Qf6 {[%clk 0:31:25.7]} 21. R1g3 {[%clk 0:30:27.3]} 21... Rg8 {[%clk 0:31:00.3]} 22. Nd5 {[%clk 0:30:22.5]} 22... Qg7 {[%clk 0:29:21]} 23. hxg6 {[%clk 0:29:38.7]} 23... Qf8 {[%clk 0:28:34.3]} 24. Nxc7 {[%clk 0:28:09.1]} 24... Rc8 {[%clk 0:28:24.5]} 25. Bxf7 {[%clk 0:27:58.1]} 25... Rxc7 {[%clk 0:27:58.8]} 26. Bxg8 {[%clk 0:27:57.4]} 26... Qxg8 {[%clk 0:27:58.6]} 27. Rh3 {[%clk 0:27:43.2]} 27... Kg7 {[%clk 0:27:04.9]} 28. Rh5 {[%clk 0:27:16.9]} 28... b5 {[%clk 0:26:13.1]} 29. Rf5 {[%clk 0:26:48.2]} 29... Qe6 {[%clk 0:25:31.3]} 30. f4 {[%clk 0:25:54.2]} 30... Nd4 {[%clk 0:24:55.5]} 31. Rf7+ {[%clk 0:24:15.7]} 31... Rxf7 {[%clk 0:24:51.6]} 32. gxf7+ {[%clk 0:24:16.7]} 32... Kxf7 {[%clk 0:24:51.4]} 33. f5 {[%clk 0:24:12]} 33... Nxf5 {[%clk 0:24:04.5]} 34. exf5 {[%clk 0:23:56.4]} 34... Qxf5+ {[%clk 0:24:04.7]} 35. Kg3 {[%clk 0:23:57.9]} 35... Qxd3+ {[%clk 0:24:04.8]} 36. Kh4 {[%clk 0:23:54.5]} 36... Qf3 {[%clk 0:23:14.2]} 37. Rg3 {[%clk 0:23:39.1]} 37... Qf6+ {[%clk 0:23:10.6]} 38. Kg4 {[%clk 0:23:37.6]} 38... Qg5+ {[%clk 0:23:04.6]} 39. Kf3 {[%clk 0:23:37.9]} 39... Qf4+ {[%clk 0:23:02.7]} 40. Kg2 {[%clk 0:23:36.5]} 40... Qd2+ {[%clk 0:22:45.3]} 41. Kh3 {[%clk 0:23:34.5]} 41... Qxb2 {[%clk 0:22:32.6]} 42. Rf3+ {[%clk 0:23:30.9]} 42... Ke6 {[%clk 0:22:24]} 43. Rg3 {[%clk 0:23:26.9]} 43... Qb1 {[%clk 0:22:14.7]} 44. Rg6+ {[%clk 0:23:26]} 44... Qxg6 {[%clk 0:22:14.4]} 0-1